[Event "Titled Tuesday Blitz July 18 Early 2023"]
[White "Dimitrov, Atanas"]
[Black "Zemlyanskii, Ivan"]
[WhiteFideId "2901315"]
[BlackFideId "24249971"]
[WhiteElo "2688"]
[BlackElo "2876"]
[Result "0-1"]
[Round "6"]
[TimeControl "180+2"]
[Date "2023.07.18"]
[WhiteClock "0:00:00"]
[BlackClock "0:00:08"]
[Board "37"]

1. Nf3 {[%clk 0:03:00]}  d5 {[%clk 0:02:59]} 2. e3 {[%clk 0:03:01]}  Nf6 {[%clk 0:02:59]} 3. c4 {[%clk 0:03:01]}  e6 {[%clk 0:02:58]} 4. Nc3 {[%clk 0:03:01]}  Bd6 {[%clk 0:02:57]} 5. b3 {[%clk 0:03:02]}  O-O {[%clk 0:02:57]} 6. Bb2 {[%clk 0:03:02]}  Re8 {[%clk 0:02:56]} 7. d4 {[%clk 0:03:01]}  b6 {[%clk 0:02:48]} 8. Be2 {[%clk 0:03:00]}  Bb7 {[%clk 0:02:47]} 9. O-O {[%clk 0:02:59]}  a6 {[%clk 0:02:48]} 10. Rc1 {[%clk 0:02:55]}  Nbd7 {[%clk 0:02:47]} 11. Nd2 {[%clk 0:02:53]}  Ne4 {[%clk 0:02:44]} 12. cxd5 {[%clk 0:02:51]}  exd5 {[%clk 0:02:45]} 13. Ncxe4 {[%clk 0:02:44]}  dxe4 {[%clk 0:02:45]} 14. Nc4 {[%clk 0:02:44]}  Bf8 {[%clk 0:02:39]} 15. Qc2 {[%clk 0:02:41]}  Qg5 {[%clk 0:02:31]} 16. Rfd1 {[%clk 0:02:38]}  Rac8 {[%clk 0:02:15]} 17. g3 {[%clk 0:02:16]}  Nf6 {[%clk 0:02:06]} 18. Qd2 {[%clk 0:01:54]}  Nd5 {[%clk 0:01:56]} 19. Qe1 {[%clk 0:01:50]}  b5 {[%clk 0:01:29]} 20. Nd2 {[%clk 0:01:40]}  Bd6 {[%clk 0:01:25]} 21. Qf1 {[%clk 0:01:37]}  Re6 {[%clk 0:01:23]} 22. Qg2 {[%clk 0:01:35]}  Rce8 {[%clk 0:01:16]} 23. a4 {[%clk 0:01:28]}  c6 {[%clk 0:01:06]} 24. axb5 {[%clk 0:01:28]}  axb5 {[%clk 0:01:07]} 25. h4 {[%clk 0:01:20]}  Qe7 {[%clk 0:01:02]} 26. Ra1 {[%clk 0:01:12]}  Rg6 {[%clk 0:01:01]} 27. Nf1 {[%clk 0:01:06]}  f5 {[%clk 0:00:56]} 28. Bh5 {[%clk 0:01:04]}  f4 {[%clk 0:00:41]} 29. Bxg6 {[%clk 0:01:03]}  f3 {[%clk 0:00:41]} 30. Qh3 {[%clk 0:01:02]}  hxg6 {[%clk 0:00:40]} 31. Ra7 {[%clk 0:00:45]}  Bb8 {[%clk 0:00:40]} 32. Raa1 {[%clk 0:00:44]}  Bc8 {[%clk 0:00:38]} 33. Qh1 {[%clk 0:00:41]}  g5 {[%clk 0:00:31]} 34. Rdc1 {[%clk 0:00:40]}  gxh4 {[%clk 0:00:21]} 35. Qxh4 {[%clk 0:00:41]}  Qxh4 {[%clk 0:00:20]} 36. gxh4 {[%clk 0:00:42]}  Bb7 {[%clk 0:00:16]} 37. Nd2 {[%clk 0:00:28]}  Re6 {[%clk 0:00:17]} 38. Kf1 {[%clk 0:00:20]}  Kh7 {[%clk 0:00:16]} 39. Ke1 {[%clk 0:00:20]}  Nb4 {[%clk 0:00:15]} 40. Rc3 {[%clk 0:00:16]}  Rg6 {[%clk 0:00:14]} 41. Nf1 {[%clk 0:00:14]}  Nd3+ {[%clk 0:00:12]} 42. Rxd3 {[%clk 0:00:13]}  exd3 {[%clk 0:00:13]} 43. Bc1 {[%clk 0:00:10]}  Rg1 {[%clk 0:00:11]} 44. e4 {[%clk 0:00:11]}  Bc8 {[%clk 0:00:09]} 45. Be3 {[%clk 0:00:05]}  Bh3 {[%clk 0:00:09]} 46. Kd2 {[%clk 0:00:06]}  Rxf1 {[%clk 0:00:09]} 47. Ra8 {[%clk 0:00:07]}  Bh2 {[%clk 0:00:08]} 48. d5 {[%clk 0:00:06]}  cxd5 {[%clk 0:00:08]} 49. exd5 {[%clk 0:00:07]}  Rb1 {[%clk 0:00:07]} 50. Kxd3 {[%clk 0:00:05]}  Rxb3+ {[%clk 0:00:08]} 51. Ke4 {[%clk 0:00:05]}  Bg4 {[%clk 0:00:05]} 52. Ra7 {[%clk 0:00:02]}  Rb4+ {[%clk 0:00:04]} 53. Bd4 {[%clk 0:00:03]}  Kh6 {[%clk 0:00:05]} 54. Ra6+ {[%clk 0:00:01]}  Kh5 {[%clk 0:00:04]} 55. d6 {[%clk 0:00:02]}  Bg1 {[%clk 0:00:03]} 56. Kd5 {[%clk 0:00:02]}  Bh2 {[%clk 0:00:03]} 57. Bxg7 {[%clk 0:00:02]}  Kxh4 {[%clk 0:00:02]} 58. Ra8 {[%clk 0:00:02]}  Kg5 {[%clk 0:00:01]} 59. Rg8 {[%clk 0:00:02]}  Kf5 {[%clk 0:00:01]} 60. Rf8+ {[%clk 0:00:02]}  Kg6 {[%clk 0:00:02]} 61. Bd4 {[%clk 0:00:02]}  Bf5 {[%clk 0:00:02]} 62. Rf6+ {[%clk 0:00:02]}  Kg5 {[%clk 0:00:03]} 63. Rf8 {[%clk 0:00:03]}  Bxd6 {[%clk 0:00:03]} 64. Rg8+ {[%clk 0:00:03]}  Kh5 {[%clk 0:00:02]} 65. Be3 {[%clk 0:00:04]}  Bf4 {[%clk 0:00:02]} 66. Bxf4 {[%clk 0:00:03]}  Rxf4 {[%clk 0:00:02]} 67. Ke5 {[%clk 0:00:04]}  Rg4 {[%clk 0:00:03]} 68. Rh8+ {[%clk 0:00:05]}  Kg5 {[%clk 0:00:03]} 69. Rg8+ {[%clk 0:00:05]}  Bg6 {[%clk 0:00:04]} 70. Rb8 {[%clk 0:00:05]}  Re4+ {[%clk 0:00:04]} 71. Kd5 {[%clk 0:00:05]}  b4 {[%clk 0:00:05]} 72. Rb5 {[%clk 0:00:06]}  Kf4 {[%clk 0:00:04]} 73. Kc5 {[%clk 0:00:06]}  Bf5 {[%clk 0:00:05]} 74. Rxb4 {[%clk 0:00:03]}  Rxb4 {[%clk 0:00:06]} 75. Kxb4 {[%clk 0:00:04]}  Kg4 {[%clk 0:00:06]} 76. Kc3 {[%clk 0:00:05]}  Kh3 {[%clk 0:00:07]} 77. Kd4 {[%clk 0:00:04]}  Kg2 {[%clk 0:00:08]} 78. Ke3 {[%clk 0:00:00]}  Bh3 {[%clk 0:00:08]} 0-1


[Site "https://www.chess.com"]

[Event "Titled Tuesday Blitz July 18 Early 2023"]
[White "Ozen, Bahadir"]
[Black "Iskusnyh, Sergei"]
[WhiteFideId "6337058"]
[BlackFideId "4120027"]
[WhiteElo "2835"]
[BlackElo "2653"]
[Result "1-0"]
[Round "6"]
[TimeControl "180+2"]
[Date "2023.07.18"]
[WhiteClock "0:00:14"]
[BlackClock "0:00:01"]
[Board "41"]

1. g3 {[%clk 0:03:00]}  d5 {[%clk 0:02:59]} 2. Nf3 {[%clk 0:03:01]}  Nf6 {[%clk 0:02:58]} 3. Bg2 {[%clk 0:03:01]}  c6 {[%clk 0:02:59]} 4. O-O {[%clk 0:03:01]}  Bf5 {[%clk 0:02:56]} 5. d3 {[%clk 0:03:01]}  h6 {[%clk 0:02:54]} 6. c4 {[%clk 0:03:00]}  e6 {[%clk 0:02:54]} 7. Qb3 {[%clk 0:02:47]}  Qb6 {[%clk 0:02:53]} 8. Be3 {[%clk 0:02:47]}  Qa6 {[%clk 0:02:46]} 9. Nc3 {[%clk 0:02:27]}  Be7 {[%clk 0:02:45]} 10. cxd5 {[%clk 0:02:16]}  exd5 {[%clk 0:02:44]} 11. Qa4 {[%clk 0:02:15]}  O-O {[%clk 0:02:38]} 12. a3 {[%clk 0:02:13]}  Qxa4 {[%clk 0:02:15]} 13. Nxa4 {[%clk 0:02:13]}  Nbd7 {[%clk 0:02:15]} 14. Rfc1 {[%clk 0:02:07]}  Rfe8 {[%clk 0:02:14]} 15. Bd4 {[%clk 0:01:43]}  Bd6 {[%clk 0:02:05]} 16. Kf1 {[%clk 0:01:43]}  Ne5 {[%clk 0:01:46]} 17. Nxe5 {[%clk 0:01:43]}  Bxe5 {[%clk 0:01:46]} 18. Bxe5 {[%clk 0:01:43]}  Rxe5 {[%clk 0:01:46]} 19. Nc5 {[%clk 0:01:11]}  Rae8 {[%clk 0:01:43]} 20. Nxb7 {[%clk 0:01:10]}  Bg4 {[%clk 0:01:24]} 21. e3 {[%clk 0:01:08]}  Bd7 {[%clk 0:01:18]} 22. Nc5 {[%clk 0:01:07]}  Bf5 {[%clk 0:01:16]} 23. b4 {[%clk 0:01:04]}  Nd7 {[%clk 0:01:12]} 24. Nxd7 {[%clk 0:01:03]}  Bxd7 {[%clk 0:01:10]} 25. Rc5 {[%clk 0:01:01]}  g5 {[%clk 0:01:00]} 26. Ra5 {[%clk 0:00:59]}  f5 {[%clk 0:00:55]} 27. Rxa7 {[%clk 0:00:57]}  Be6 {[%clk 0:00:54]} 28. Rc1 {[%clk 0:00:57]}  f4 {[%clk 0:00:46]} 29. Rxc6 {[%clk 0:00:34]}  fxe3 {[%clk 0:00:43]} 30. fxe3 {[%clk 0:00:35]}  Rf8+ {[%clk 0:00:35]} 31. Kg1 {[%clk 0:00:35]}  Kh8 {[%clk 0:00:25]} 32. Raa6 {[%clk 0:00:30]}  Bf5 {[%clk 0:00:20]} 33. Rxh6+ {[%clk 0:00:29]}  Kg7 {[%clk 0:00:20]} 34. e4 {[%clk 0:00:29]}  dxe4 {[%clk 0:00:20]} 35. dxe4 {[%clk 0:00:28]}  Bh7 {[%clk 0:00:19]} 36. Rhd6 {[%clk 0:00:17]}  Rc8 {[%clk 0:00:18]} 37. Rac6 {[%clk 0:00:13]}  Ra8 {[%clk 0:00:17]} 38. Rc7+ {[%clk 0:00:14]}  Kh8 {[%clk 0:00:01]} 39. Rh6 {[%clk 0:00:14]} 1-0


[Site "https://www.chess.com"]

[Event "Titled Tuesday Blitz July 18 Early 2023"]
[White "musclemonster12"]
[Black "Xu, Yi"]
[BlackFideId "8605564"]
[WhiteElo "2569"]
[BlackElo "2739"]
[Result "0-1"]
[Round "6"]
[TimeControl "180+2"]
[Date "2023.07.18"]
[WhiteClock "0:00:00"]
[BlackClock "0:01:21"]
[Board "45"]

1. c4 {[%clk 0:03:00]}  Nf6 {[%clk 0:02:59]} 2. Nc3 {[%clk 0:02:58]}  e5 {[%clk 0:02:59]} 3. Nf3 {[%clk 0:02:58]}  Nc6 {[%clk 0:02:59]} 4. g3 {[%clk 0:02:57]}  Bb4 {[%clk 0:02:57]} 5. Bg2 {[%clk 0:02:54]}  Bxc3 {[%clk 0:02:56]} 6. dxc3 {[%clk 0:02:51]}  d6 {[%clk 0:02:55]} 7. O-O {[%clk 0:02:51]}  h6 {[%clk 0:02:54]} 8. Qc2 {[%clk 0:02:51]}  Be6 {[%clk 0:02:50]} 9. b3 {[%clk 0:02:50]}  Qd7 {[%clk 0:02:51]} 10. Rd1 {[%clk 0:02:50]}  Bh3 {[%clk 0:02:50]} 11. Bh1 {[%clk 0:02:50]}  Qe6 {[%clk 0:02:46]} 12. Nd2 {[%clk 0:02:40]}  O-O {[%clk 0:02:44]} 13. Nf1 {[%clk 0:02:39]}  e4 {[%clk 0:02:35]} 14. Ne3 {[%clk 0:02:34]}  Ne7 {[%clk 0:02:35]} 15. Qd2 {[%clk 0:02:22]}  Rae8 {[%clk 0:02:31]} 16. Nd5 {[%clk 0:02:15]}  Nexd5 {[%clk 0:02:25]} 17. cxd5 {[%clk 0:02:14]}  Qg4 {[%clk 0:02:20]} 18. Qe3 {[%clk 0:02:11]}  Qh5 {[%clk 0:02:16]} 19. c4 {[%clk 0:01:58]}  Ng4 {[%clk 0:01:54]} 20. Qd4 {[%clk 0:01:56]}  f5 {[%clk 0:01:49]} 21. Bb2 {[%clk 0:01:53]}  Rf6 {[%clk 0:01:46]} 22. f3 {[%clk 0:01:24]}  Nxh2 {[%clk 0:01:38]} 23. Kxh2 {[%clk 0:01:17]}  Bf1+ {[%clk 0:01:33]} 24. Kg1 {[%clk 0:01:16]}  Bxe2 {[%clk 0:01:34]} 25. Re1 {[%clk 0:00:45]}  exf3 {[%clk 0:01:34]} 26. Qf2 {[%clk 0:00:40]}  Rg6 {[%clk 0:01:29]} 27. Bxf3 {[%clk 0:00:19]}  Bxf3 {[%clk 0:01:23]} 28. Rxe8+ {[%clk 0:00:19]}  Kf7 {[%clk 0:01:23]} 29. Qe1 {[%clk 0:00:04]}  Qh1+ {[%clk 0:01:22]} 30. Kf2 {[%clk 0:00:04]}  Qg2+ {[%clk 0:01:22]} 31. Ke3 {[%clk 0:00:03]}  Kxe8 {[%clk 0:01:23]} 32. Kf4+ {[%clk 0:00:00]}  Kf7 {[%clk 0:01:21]} 0-1


[Site "https://www.chess.com"]

[Event "Titled Tuesday Blitz July 18 Early 2023"]
[White "Bilan, Danila"]
[Black "Ashraf, Artin"]
[WhiteFideId "24161918"]
[BlackFideId "22514805"]
[WhiteElo "2538"]
[BlackElo "2732"]
[Result "0-1"]
[Round "6"]
[TimeControl "180+2"]
[Date "2023.07.18"]
[WhiteClock "0:00:00"]
[BlackClock "0:01:13"]
[Board "46"]

1. d4 {[%clk 0:02:59]}  a6 {[%clk 0:03:00]} 2. Nf3 {[%clk 0:02:49]}  b5 {[%clk 0:02:58]} 3. e3 {[%clk 0:02:48]}  Bb7 {[%clk 0:02:58]} 4. c4 {[%clk 0:02:48]}  bxc4 {[%clk 0:02:56]} 5. Bxc4 {[%clk 0:02:49]}  e6 {[%clk 0:02:56]} 6. Nc3 {[%clk 0:02:43]}  Nf6 {[%clk 0:02:56]} 7. O-O {[%clk 0:02:40]}  Bxf3 {[%clk 0:02:38]} 8. Qxf3 {[%clk 0:02:39]}  d5 {[%clk 0:02:39]} 9. Bb3 {[%clk 0:02:29]}  c6 {[%clk 0:02:38]} 10. e4 {[%clk 0:02:23]}  Bb4 {[%clk 0:02:37]} 11. e5 {[%clk 0:01:53]}  Nfd7 {[%clk 0:02:35]} 12. Qg3 {[%clk 0:01:52]}  g6 {[%clk 0:02:34]} 13. Na4 {[%clk 0:01:40]}  O-O {[%clk 0:02:32]} 14. Bh6 {[%clk 0:01:35]}  Re8 {[%clk 0:02:32]} 15. Rac1 {[%clk 0:01:32]}  Bf8 {[%clk 0:02:31]} 16. Bxf8 {[%clk 0:01:26]}  Rxf8 {[%clk 0:02:30]} 17. Rc3 {[%clk 0:01:21]}  Ra7 {[%clk 0:02:26]} 18. Rfc1 {[%clk 0:01:19]}  Rc7 {[%clk 0:02:26]} 19. Qf4 {[%clk 0:00:53]}  Qe7 {[%clk 0:02:14]} 20. Rh3 {[%clk 0:00:39]}  Rfc8 {[%clk 0:02:13]} 21. Nc5 {[%clk 0:00:27]}  Qf8 {[%clk 0:02:08]} 22. Qh4 {[%clk 0:00:22]}  Qg7 {[%clk 0:02:06]} 23. Rhc3 {[%clk 0:00:19]}  Nxc5 {[%clk 0:02:05]} 24. Rxc5 {[%clk 0:00:20]}  Nd7 {[%clk 0:02:05]} 25. R5c3 {[%clk 0:00:18]}  c5 {[%clk 0:02:05]} 26. f4 {[%clk 0:00:17]}  Qf8 {[%clk 0:02:02]} 27. Qf2 {[%clk 0:00:12]}  c4 {[%clk 0:01:52]} 28. Bd1 {[%clk 0:00:12]}  Qd8 {[%clk 0:01:45]} 29. Rh3 {[%clk 0:00:05]}  f5 {[%clk 0:01:45]} 30. exf6 {[%clk 0:00:03]}  Nxf6 {[%clk 0:01:44]} 31. Re3 {[%clk 0:00:02]}  Ne4 {[%clk 0:01:42]} 32. Qe1 {[%clk 0:00:02]}  Qf6 {[%clk 0:01:41]} 33. g3 {[%clk 0:00:02]}  Qxd4 {[%clk 0:01:41]} 34. Bf3 {[%clk 0:00:02]}  Nd2 {[%clk 0:01:39]} 35. Bg2 {[%clk 0:00:02]}  Qxb2 {[%clk 0:01:29]} 36. Rxe6 {[%clk 0:00:02]}  Qd4+ {[%clk 0:01:29]} 37. Kh1 {[%clk 0:00:02]}  c3 {[%clk 0:01:30]} 38. Re8+ {[%clk 0:00:02]}  Rxe8 {[%clk 0:01:29]} 39. Qxe8+ {[%clk 0:00:01]}  Kg7 {[%clk 0:01:30]} 40. Re1 {[%clk 0:00:02]}  Ne4 {[%clk 0:01:28]} 41. Bxe4 {[%clk 0:00:01]}  dxe4 {[%clk 0:01:29]} 42. Rxe4 {[%clk 0:00:01]}  Qd5 {[%clk 0:01:14]} 43. Kg1 {[%clk 0:00:01]}  Qc5+ {[%clk 0:01:12]} 44. Kg2 {[%clk 0:00:00]}  c2 {[%clk 0:01:13]} 0-1


[Site "https://www.chess.com"]

[Event "Titled Tuesday Blitz July 18 Early 2023"]
[White "Panesar Vedant"]
[Black "Jiang, Andrew"]
[WhiteFideId "35033018"]
[BlackFideId "30953510"]
[WhiteElo "2727"]
[BlackElo "2395"]
[Result "1-0"]
[Round "6"]
[TimeControl "180+2"]
[Date "2023.07.18"]
[WhiteClock "0:00:32"]
[BlackClock "0:00:03"]
[Board "47"]

1. d4 {[%clk 0:03:00]}  d5 {[%clk 0:02:53]} 2. Nf3 {[%clk 0:02:55]}  Nf6 {[%clk 0:02:50]} 3. c4 {[%clk 0:02:56]}  c6 {[%clk 0:02:49]} 4. cxd5 {[%clk 0:02:52]}  cxd5 {[%clk 0:02:49]} 5. Nc3 {[%clk 0:02:53]}  Nc6 {[%clk 0:02:49]} 6. Bf4 {[%clk 0:02:53]}  g6 {[%clk 0:02:44]} 7. e3 {[%clk 0:02:51]}  Bg7 {[%clk 0:02:44]} 8. h3 {[%clk 0:02:46]}  O-O {[%clk 0:02:44]} 9. Be2 {[%clk 0:02:42]}  a6 {[%clk 0:02:30]} 10. O-O {[%clk 0:02:38]}  Bd7 {[%clk 0:02:29]} 11. Rc1 {[%clk 0:02:30]}  Rc8 {[%clk 0:02:10]} 12. a3 {[%clk 0:02:16]}  Re8 {[%clk 0:02:04]} 13. Qb3 {[%clk 0:01:53]}  Na5 {[%clk 0:02:04]} 14. Qa2 {[%clk 0:01:52]}  b5 {[%clk 0:01:51]} 15. Nxd5 {[%clk 0:01:45]}  Be6 {[%clk 0:01:49]} 16. Nxf6+ {[%clk 0:01:42]}  Bxf6 {[%clk 0:01:44]} 17. Rxc8 {[%clk 0:01:27]}  Qxc8 {[%clk 0:01:40]} 18. d5 {[%clk 0:01:27]}  Bf5 {[%clk 0:01:33]} 19. b4 {[%clk 0:01:21]}  Nb7 {[%clk 0:01:27]} 20. Ne5 {[%clk 0:01:06]}  Qc3 {[%clk 0:01:12]} 21. Nc6 {[%clk 0:00:55]}  Nd6 {[%clk 0:01:00]} 22. a4 {[%clk 0:00:46]}  bxa4 {[%clk 0:00:32]} 23. Qxa4 {[%clk 0:00:40]}  Be4 {[%clk 0:00:29]} 24. Nxe7+ {[%clk 0:00:35]}  Rxe7 {[%clk 0:00:26]} 25. Bxd6 {[%clk 0:00:35]}  Bc2 {[%clk 0:00:18]} 26. Qc6 {[%clk 0:00:31]}  Qxc6 {[%clk 0:00:13]} 27. dxc6 {[%clk 0:00:32]}  Re6 {[%clk 0:00:10]} 28. c7 {[%clk 0:00:32]}  Re8 {[%clk 0:00:10]} 29. Bxa6 {[%clk 0:00:32]}  Bf5 {[%clk 0:00:10]} 30. b5 {[%clk 0:00:33]}  Ra8 {[%clk 0:00:09]} 31. Rc1 {[%clk 0:00:31]}  Bb2 {[%clk 0:00:05]} 32. c8=Q+ {[%clk 0:00:30]}  Rxc8 {[%clk 0:00:05]} 33. Rxc8+ {[%clk 0:00:31]}  Bxc8 {[%clk 0:00:03]} 34. Bxc8 {[%clk 0:00:32]} 1-0


[Site "https://www.chess.com"]

[Event "Titled Tuesday Blitz July 18 Early 2023"]
[White "Vokhidov, Shamsiddin"]
[Black "favesaul"]
[WhiteFideId "14204223"]
[WhiteElo "2915"]
[BlackElo "2438"]
[Result "1-0"]
[Round "6"]
[TimeControl "180+2"]
[Date "2023.07.18"]
[WhiteClock "0:02:34"]
[BlackClock "0:00:24"]
[Board "48"]

1. c3 {[%clk 0:03:00]}  Nf6 {[%clk 0:02:55]} 2. d4 {[%clk 0:03:01]}  g6 {[%clk 0:02:55]} 3. Nf3 {[%clk 0:03:02]}  Bg7 {[%clk 0:02:55]} 4. Bf4 {[%clk 0:03:03]}  O-O {[%clk 0:02:55]} 5. e3 {[%clk 0:03:04]}  d6 {[%clk 0:02:55]} 6. Nbd2 {[%clk 0:03:05]}  c5 {[%clk 0:02:55]} 7. h3 {[%clk 0:03:06]}  b6 {[%clk 0:02:55]} 8. Bd3 {[%clk 0:03:05]}  Bb7 {[%clk 0:02:55]} 9. O-O {[%clk 0:03:06]}  Nbd7 {[%clk 0:02:46]} 10. Bh2 {[%clk 0:03:04]}  Qc7 {[%clk 0:02:37]} 11. Qe2 {[%clk 0:03:04]}  e5 {[%clk 0:02:26]} 12. dxe5 {[%clk 0:03:04]}  dxe5 {[%clk 0:02:26]} 13. Nc4 {[%clk 0:03:03]}  Rfe8 {[%clk 0:02:13]} 14. e4 {[%clk 0:03:03]}  Nh5 {[%clk 0:02:10]} 15. Qe3 {[%clk 0:03:02]}  Nf4 {[%clk 0:02:08]} 16. Bc2 {[%clk 0:03:02]}  Ba6 {[%clk 0:02:04]} 17. b3 {[%clk 0:02:56]}  Bh6 {[%clk 0:02:00]} 18. Kh1 {[%clk 0:02:49]}  b5 {[%clk 0:01:49]} 19. Ncxe5 {[%clk 0:02:49]}  Nxe5 {[%clk 0:01:41]} 20. Bxf4 {[%clk 0:02:49]}  Bxf4 {[%clk 0:01:41]} 21. Qxf4 {[%clk 0:02:49]}  c4 {[%clk 0:01:25]} 22. b4 {[%clk 0:02:48]}  Bb7 {[%clk 0:01:25]} 23. a4 {[%clk 0:02:47]}  a6 {[%clk 0:01:24]} 24. axb5 {[%clk 0:02:47]}  axb5 {[%clk 0:01:25]} 25. Rxa8 {[%clk 0:02:47]}  Bxa8 {[%clk 0:01:26]} 26. Ra1 {[%clk 0:02:46]}  f6 {[%clk 0:01:16]} 27. Qxf6 {[%clk 0:02:41]}  Nxf3 {[%clk 0:01:16]} 28. Qxf3 {[%clk 0:02:40]}  Qe5 {[%clk 0:01:15]} 29. Qe3 {[%clk 0:02:38]}  Bxe4 {[%clk 0:00:54]} 30. Re1 {[%clk 0:02:38]}  Bxg2+ {[%clk 0:00:38]} 31. Kxg2 {[%clk 0:02:39]}  Qd5+ {[%clk 0:00:38]} 32. Be4 {[%clk 0:02:38]}  Qd6 {[%clk 0:00:24]} 33. Qc5 {[%clk 0:02:34]} 1-0


[Site "https://www.chess.com"]

[Event "Titled Tuesday Blitz July 18 Early 2023"]
[White "Bodnaruk, Anastasia"]
[Black "demon64fields"]
[WhiteFideId "4181751"]
[WhiteElo "2579"]
[BlackElo "2885"]
[Result "0-1"]
[Round "6"]
[TimeControl "180+2"]
[Date "2023.07.18"]
[WhiteClock "0:00:02"]
[BlackClock "0:01:17"]
[Board "49"]

1. e4 {[%clk 0:02:54]}  a6 {[%clk 0:03:00]} 2. d4 {[%clk 0:02:54]}  b5 {[%clk 0:03:00]} 3. Bd3 {[%clk 0:02:51]}  Bb7 {[%clk 0:03:01]} 4. f4 {[%clk 0:02:48]}  Nf6 {[%clk 0:03:01]} 5. Nd2 {[%clk 0:02:43]}  e6 {[%clk 0:03:01]} 6. Ngf3 {[%clk 0:02:42]}  c5 {[%clk 0:03:01]} 7. c3 {[%clk 0:02:40]}  d5 {[%clk 0:03:01]} 8. e5 {[%clk 0:02:36]}  Nfd7 {[%clk 0:02:58]} 9. Nf1 {[%clk 0:02:31]}  g6 {[%clk 0:02:56]} 10. h4 {[%clk 0:02:23]}  h5 {[%clk 0:02:52]} 11. Be3 {[%clk 0:02:03]}  Nc6 {[%clk 0:02:51]} 12. Ng5 {[%clk 0:01:54]}  Qe7 {[%clk 0:02:50]} 13. Nh2 {[%clk 0:01:48]}  c4 {[%clk 0:02:45]} 14. Bc2 {[%clk 0:01:48]}  O-O-O {[%clk 0:02:44]} 15. Nhf3 {[%clk 0:01:44]}  Kb8 {[%clk 0:02:39]} 16. O-O {[%clk 0:01:43]}  Nb6 {[%clk 0:02:32]} 17. a4 {[%clk 0:01:41]}  b4 {[%clk 0:02:30]} 18. a5 {[%clk 0:01:42]}  Nc8 {[%clk 0:02:29]} 19. b3 {[%clk 0:01:42]}  Bh6 {[%clk 0:02:24]} 20. Qe2 {[%clk 0:01:33]}  cxb3 {[%clk 0:02:20]} 21. Bxb3 {[%clk 0:01:33]}  N8a7 {[%clk 0:02:21]} 22. c4 {[%clk 0:01:30]}  Bxg5 {[%clk 0:02:17]} 23. hxg5 {[%clk 0:01:28]}  dxc4 {[%clk 0:02:06]} 24. Bxc4 {[%clk 0:01:28]}  h4 {[%clk 0:02:03]} 25. Bxa6 {[%clk 0:01:25]}  Bxa6 {[%clk 0:02:04]} 26. Qxa6 {[%clk 0:01:25]}  Qb7 {[%clk 0:02:05]} 27. Qe2 {[%clk 0:01:20]}  Qb5 {[%clk 0:02:04]} 28. Qd2 {[%clk 0:01:18]}  h3 {[%clk 0:02:03]} 29. Rfc1 {[%clk 0:01:08]}  hxg2 {[%clk 0:01:58]} 30. Kxg2 {[%clk 0:01:08]}  Qd5 {[%clk 0:01:54]} 31. Qf2 {[%clk 0:00:56]}  Ne7 {[%clk 0:01:28]} 32. Qd2 {[%clk 0:00:32]}  Nac6 {[%clk 0:01:22]} 33. Rc5 {[%clk 0:00:29]}  Rh2+ {[%clk 0:01:21]} 34. Kxh2 {[%clk 0:00:22]}  Qxf3 {[%clk 0:01:21]} 35. Kg1 {[%clk 0:00:10]}  Rh8 {[%clk 0:01:21]} 36. Rb5+ {[%clk 0:00:09]}  Kc7 {[%clk 0:01:19]} 37. Qg2 {[%clk 0:00:08]}  Qxe3+ {[%clk 0:01:18]} 38. Kf1 {[%clk 0:00:09]}  Qd3+ {[%clk 0:01:18]} 39. Qe2 {[%clk 0:00:02]}  Rh1+ {[%clk 0:01:17]} 0-1


[Site "https://www.chess.com"]

[Event "Titled Tuesday Blitz July 18 Early 2023"]
[White "Pakleza, Zbigniew"]
[Black "Zhang, Eric"]
[WhiteFideId "1119290"]
[BlackFideId "30907667"]
[WhiteElo "2796"]
[BlackElo "2561"]
[Result "1-0"]
[Round "6"]
[TimeControl "180+2"]
[Date "2023.07.18"]
[WhiteClock "0:01:52"]
[BlackClock "0:00:15"]
[Board "53"]

1. d4 {[%clk 0:03:00]}  Nf6 {[%clk 0:03:00]} 2. Nf3 {[%clk 0:03:01]}  e6 {[%clk 0:02:59]} 3. Bf4 {[%clk 0:03:00]}  c5 {[%clk 0:02:56]} 4. c3 {[%clk 0:02:58]}  Nc6 {[%clk 0:02:54]} 5. e3 {[%clk 0:02:57]}  b6 {[%clk 0:02:54]} 6. Nbd2 {[%clk 0:02:57]}  Bb7 {[%clk 0:02:54]} 7. Nc4 {[%clk 0:02:57]}  d5 {[%clk 0:02:46]} 8. Nce5 {[%clk 0:02:56]}  Nxe5 {[%clk 0:02:41]} 9. Nxe5 {[%clk 0:02:54]}  Bd6 {[%clk 0:02:36]} 10. Qa4+ {[%clk 0:02:52]}  Ke7 {[%clk 0:02:33]} 11. Ba6 {[%clk 0:02:51]}  Bxe5 {[%clk 0:01:41]} 12. dxe5 {[%clk 0:02:41]}  Bxa6 {[%clk 0:01:08]} 13. exf6+ {[%clk 0:02:41]}  gxf6 {[%clk 0:01:09]} 14. Qxa6 {[%clk 0:02:41]}  Qd7 {[%clk 0:01:04]} 15. O-O-O {[%clk 0:02:38]}  Rhg8 {[%clk 0:01:03]} 16. Bg3 {[%clk 0:02:34]}  Qc6 {[%clk 0:00:53]} 17. e4 {[%clk 0:02:27]}  d4 {[%clk 0:00:51]} 18. Qd3 {[%clk 0:02:08]}  Rgd8 {[%clk 0:00:49]} 19. f3 {[%clk 0:02:03]}  c4 {[%clk 0:00:43]} 20. Qd2 {[%clk 0:02:01]}  d3 {[%clk 0:00:41]} 21. Bh4 {[%clk 0:01:59]}  Qc5 {[%clk 0:00:15]} 22. Qf4 {[%clk 0:01:52]} 1-0


[Site "https://www.chess.com"]